bitfinex/quotes_BTCUSD_20241111
["timestamp","ask_amount","ask_price","bid_price","bid_amount"]
[1731316572525,2.19450071,81412.0,81411.0,0.25]
[1731316573101,2.19459973,81412.0,81411.0,0.25]
[1731316573297,2.24974077,81412.0,81411.0,0.25]
[1731316573704,2.17620576,81412.0,81411.0,0.25]
[1731316573947,2.17619078,81412.0,81411.0,0.25]
[1731316574889,2.2497284,81412.0,81411.0,0.250843]
[1731316575104,2.17211593,81412.0,81411.0,0.250843]
[1731316575556,2.03638731,81412.0,81411.0,0.250843]
[1731316576240,2.17209412,81412.0,81411.0,0.250843]
[1731316576453,2.17210553,81412.0,81411.0,0.250843]
[1731316577298,2.16060939,81412.0,81411.0,0.250843]
[1731316577513,2.06017996,81412.0,81411.0,0.250843]
[1731316577710,2.17209503,81412.0,81411.0,0.250843]
[1731316577923,2.17209443,81412.0,81411.0,0.250843]
[1731316578482,1.92446174,81412.0,81411.0,0.250843]
[1731316579098,0.29656174,81412.0,81411.0,0.250843]
[1731316579407,0.2850761,81412.0,81411.0,0.250843]
[1731316579618,0.2850761,81412.0,81411.0,0.421676]
[1731316579619,0.1292441,81412.0,81411.0,0.421676]
[1731316579865,0.1292441,81412.0,81411.0,0.298843]
[1731316580894,0.1522441,81412.0,81411.0,0.298843]
[1731316582096,0.1522441,81412.0,81411.0,0.296843]
[1731316582320,0.12594221,81412.0,81411.0,0.421676]
[1731316582553,0.12594221,81412.0,81411.0,0.61099107]
[1731316582554,0.1292441,81412.0,81411.0,0.61099107]
[1731316582754,0.00267015,81416.0,81414.0,0.124828]
[1731316582948,0.00063174,81417.0,81414.0,0.124828]
[1731316582949,0.12861236,81415.0,81414.0,0.124828]
[1731316583147,0.00267015,81416.0,81415.0,0.002]
[1731316583352,0.18457563,81425.0,81424.0,0.002]
[1731316583595,0.00330189,81425.0,81424.0,0.124813]
[1731316583925,0.00330189,81425.0,81424.0,0.29523465]
[1731316584122,0.00330189,81425.0,81424.0,0.42113465]
[1731316584678,0.1292441,81425.0,81424.0,0.248713]
[1731316585026,0.1292441,81425.0,81424.0,0.1259]
[1731316585553,0.1522441,81425.0,81424.0,0.1259]
[1731316586976,0.2750561,81425.0,81424.0,0.0485]
[1731316587450,0.1522441,81425.0,81424.0,0.0485]
[1731316590382,0.2750561,81425.0,81424.0,0.0485]
[1731316593854,0.1522441,81425.0,81424.0,0.0485]
[1731316594814,0.1522441,81425.0,81424.0,0.173313]
[1731316595213,0.1522441,81425.0,81424.0,0.171313]
[1731316595424,0.1522441,81425.0,81424.0,0.0485]
[1731316596573,0.1522441,81425.0,81424.0,0.171313]
[1731316597570,0.1522441,81425.0,81424.0,0.0485]
[1731316597882,0.1522441,81425.0,81424.0,0.171313]
[1731316598502,0.1522441,81425.0,81424.0,0.0485]
[1731316598705,0.15205728,81425.0,81424.0,0.0485]
[1731316598916,0.15374328,81425.0,81424.0,0.0485]
[1731316599428,0.15374328,81425.0,81424.0,0.171313]
[1731316602358,0.15374328,81425.0,81424.0,0.0485]
[1731316602732,0.15374328,81425.0,81424.0,0.171313]
[1731316603758,0.15374328,81425.0,81424.0,0.0485]
[1731316604244,0.15374328,81425.0,81424.0,0.171313]
[1731316607358,0.15374328,81425.0,81424.0,0.0485]
[1731316607784,0.15374328,81425.0,81424.0,0.171313]
[1731316608224,0.15374328,81425.0,81422.0,0.000843]
[1731316608225,0.02548333,81423.0,81422.0,0.000843]
[1731316608431,0.15142554,81423.0,81422.0,0.000843]
[1731316609700,0.15142554,81423.0,81422.0,0.123659]
[1731316610131,0.12842554,81423.0,81422.0,0.254259]
[1731316610350,0.12842554,81423.0,81422.0,0.354259]
[1731316610351,0.15142554,81423.0,81422.0,0.354259]
[1731316610774,0.15142554,81423.0,81422.0,0.173959]
[1731316611811,0.15142554,81423.0,81422.0,0.171959]
[1731316612910,0.15142554,81423.0,81422.0,0.049143]
[1731316613225,0.15142554,81423.0,81422.0,0.171959]
[1731316613434,0.08623664,81423.0,81422.0,0.171959]
[1731316613766,0.08623664,81423.0,81422.0,0.173959]
[1731316614859,0.08623664,81423.0,81422.0,0.28581715]
[1731316615064,0.08623664,81423.0,81422.0,0.171959]
[1731316616445,0.08623664,81423.0,81422.0,0.173959]
[1731316618030,0.08623664,81423.0,81422.0,0.171959]
[1731316620139,0.06323664,81423.0,81422.0,0.28381715]
[1731316620342,0.001686,81425.0,81424.0,0.122813]
[1731316620543,0.12762821,81425.0,81424.0,0.124813]
[1731316620967,0.15062821,81425.0,81424.0,0.122813]
[1731316621175,0.023,81424.0,81422.0,0.000843]
[1731316621368,0.14894221,81423.0,81422.0,0.000843]
[1731316621555,0.27675721,81423.0,81422.0,0.000843]
[1731316621755,0.27738895,81423.0,81422.0,0.000843]
[1731316622182,0.35948895,81423.0,81422.0,0.000843]
[1731316624306,1.85948895,81423.0,81422.0,0.000843]
[1731316625616,1.94422617,81423.0,81422.0,0.000843]
[1731316625755,1.91248895,81423.0,81422.0,0.000843]
[1731316625957,2.04810734,81423.0,81422.0,0.000843]
[1731316626275,2.18553248,81423.0,81422.0,0.000843]
[1731316626479,2.18553248,81423.0,81411.0,0.250843]
[1731316626480,0.13346374,81412.0,81411.0,0.250843]
[1731316626655,0.58171121,81412.0,81411.0,0.250843]
[1731316627019,0.64829749,81412.0,81411.0,0.250843]
[1731316627158,0.58171121,81412.0,81411.0,0.250843]
[1731316627750,0.63679402,81412.0,81411.0,0.250843]
[1731316627939,0.41120595,81412.0,81411.0,0.250843]
[1731316628147,0.35870595,81412.0,81411.0,0.250843]
[1731316628300,0.21287395,81412.0,81411.0,0.250843]
[1731316628502,0.13157395,81412.0,81411.0,0.250843]
[1731316628684,0.25440595,81412.0,81411.0,0.250843]
[1731316628897,0.12657395,81412.0,81411.0,0.250843]
[1731316629322,0.13157395,81412.0,81411.0,0.250843]
[1731316629996,0.15457395,81412.0,81411.0,0.250843]
[1731316632306,0.27740595,81412.0,81411.0,0.250843]
[1731316632506,0.15457395,81412.0,81411.0,0.250843]
[1731316632707,0.27740595,81412.0,81411.0,0.250843]
[1731316633139,0.15457395,81412.0,81411.0,0.250843]
[1731316633814,0.27740595,81412.0,81411.0,0.250843]
[1731316634021,0.35420595,81412.0,81411.0,0.250843]
[1731316637595,1.85420595,81412.0,81411.0,0.250843]
[1731316637828,1.84681827,81412.0,81411.0,0.250843]
[1731316638049,1.72398627,81412.0,81411.0,0.250843]
[1731316638464,1.84681827,81412.0,81411.0,0.250843]
[1731316638833,1.72398627,81412.0,81411.0,0.250843]
[1731316640029,1.84681827,81412.0,81411.0,0.250843]
[1731316640231,1.72398627,81412.0,81411.0,0.250843]
[1731316640844,1.84681827,81412.0,81411.0,0.250843]
[1731316642235,1.89771827,81412.0,81411.0,0.250843]
[1731316643614,0.49771827,81412.0,81411.0,0.250843]
[1731316643956,0.22898627,81412.0,81411.0,0.250843]
[1731316644151,1.85181827,81412.0,81411.0,0.250843]
[1731316644375,1.72398627,81412.0,81411.0,0.250843]
[1731316644580,0.22398627,81412.0,81411.0,0.250843]
[1731316644755,0.22335453,81412.0,81411.0,0.250843]
[1731316645271,0.22398627,81412.0,81411.0,0.250843]
[1731316646081,0.34681827,81412.0,81411.0,0.250843]
[1731316646891,0.22398627,81412.0,81411.0,0.250843]
[1731316647308,0.34681827,81412.0,81411.0,0.250843]
[1731316649169,1.72398627,81412.0,81411.0,0.250843]
[1731316654095,0.14718627,81412.0,81411.0,0.250843]
[1731316654889,0.14655453,81412.0,81411.0,0.250843]
[1731316655292,0.14718627,81412.0,81411.0,0.250843]
[1731316656005,0.14655453,81412.0,81411.0,0.250843]
[1731316656206,0.14718627,81412.0,81411.0,0.250843]
[1731316657067,0.14887227,81412.0,81411.0,0.250843]
[1731316657968,0.12024053,81412.0,81411.0,0.373676]
[1731316658194,0.12024053,81412.0,81411.0,0.424476]
[1731316658398,0.12024053,81412.0,81411.0,0.507176]
[1731316659205,0.12024053,81412.0,81411.0,0.51447531]
[1731316663736,0.001686,81412.0,81411.0,0.51447531]
[1731316663959,0.001686,81412.0,81411.0,0.61884357]
[1731316665800,0.001686,81412.0,81411.0,0.61684357]
[1731316665981,0.001686,81412.0,81411.0,0.61884357]
[1731316668851,0.001686,81412.0,81411.0,0.51884357]
[1731316672772,0.001686,81412.0,81411.0,0.51684357]
[1731316672918,0.001686,81423.0,81422.0,0.13226826]
[1731316673126,0.18626163,81434.0,81433.0,0.35506826]
[1731316673322,0.18626163,81434.0,81433.0,0.5294464]
[1731316673546,0.001686,81434.0,81433.0,0.56780864]
[1731316674551,0.001686,81434.0,81433.0,0.56393576]
[1731316674957,0.18457563,81444.0,81440.0,0.00436826]
[1731316675158,0.18457563,81444.0,81440.0,0.48742476]
[1731316675404,0.18457563,81444.0,81440.0,0.48542476]
[1731316675640,0.18457563,81454.0,81440.0,0.48542476]
[1731316675924,0.18457563,81454.0,81440.0,0.48742476]
[1731316676741,0.18457563,81454.0,81440.0,0.48542476]
[1731316677142,0.18457563,81454.0,81440.0,0.48742476]
[1731316677994,1e-06,81441.0,81440.0,0.56642476]
[1731316678208,0.18457563,81454.0,81450.0,0.35304226]
[1731316678420,0.18457563,81454.0,81450.0,0.52354752]
[1731316678948,0.0172888,81462.0,81450.0,0.52354752]
[1731316679153,0.01662178,81462.0,81461.0,0.124758]
[1731316679357,0.122714,81490.0,81461.0,0.124758]
[1731316679358,0.005,81493.0,81476.0,0.124735]
[1731316679565,0.000695,81494.0,81483.0,0.22909226]
[1731316679854,0.000695,81494.0,81483.0,0.24579145]
[1731316680079,0.000695,81494.0,81483.0,0.58404818]
[1731316680246,0.000695,81494.0,81483.0,0.58159399]
[1731316680437,0.000695,81494.0,81493.0,0.124709]
[1731316680638,0.000695,81494.0,81493.0,0.30300113]
[1731316681009,0.000695,81494.0,81493.0,0.29521426]
[1731316681837,0.000695,81494.0,81493.0,0.122709]
[1731316682043,0.00132674,81494.0,81493.0,0.122709]
[1731316682505,0.00632674,81494.0,81484.0,0.245446]
[1731316682709,0.00632674,81494.0,81480.0,0.245457]
[1731316682710,0.00563174,81492.0,81485.0,0.002]
[1731316682946,0.00563174,81492.0,81486.0,0.24544]
[1731316683185,0.00063174,81486.0,81485.0,0.122721]
[1731316683419,0.023,81493.0,81470.0,0.005]
[1731316683688,0.023,81493.0,81470.0,0.01224401]
[1731316683899,0.023,81493.0,81487.0,0.122718]
[1731316684652,0.12594221,81488.0,81487.0,0.122718]
[1731316684856,0.12594221,81488.0,81475.0,0.18457563]
[1731316684857,0.12594221,81488.0,81476.0,0.245471]
[1731316685071,0.023,81493.0,81484.0,0.122722]
[1731316685072,0.12594221,81487.0,81484.0,0.122722]
[1731316685278,0.12594221,81487.0,81475.0,0.18457563]
[1731316685477,0.12594221,81487.0,81486.0,0.12272]
[1731316686651,0.12594221,81487.0,81466.0,0.01234093]
[1731316686652,0.0766,81485.0,81469.0,0.18457563]
[1731316686859,0.12594221,81484.0,81478.0,0.43003763]
[1731316687101,0.12594221,81484.0,81481.0,0.122726]
[1731316687374,0.12594221,81484.0,81472.0,0.245481]
[1731316687375,0.12594221,81484.0,81479.0,0.122731]
[1731316687612,0.12594221,81484.0,81473.0,0.24548]
[1731316687828,0.12594221,81484.0,81481.0,0.122726]
[1731316688059,0.12594221,81484.0,81469.0,0.18457563]
[1731316688291,0.12594221,81484.0,81480.0,0.122728]
[1731316688510,0.023,81480.0,81466.0,0.002]
[1731316688803,0.023,81480.0,81460.0,0.005]
[1731316688804,0.12594221,81476.0,81472.0,0.122741]
[1731316689512,0.12594221,81476.0,81467.0,0.18457563]
[1731316689717,0.12594221,81472.0,81467.0,0.122748]
[1731316689882,0.12594221,81472.0,81461.0,0.245516]
[1731316690046,0.12594221,81472.0,81460.0,0.245519]
[1731316690047,0.12594221,81468.0,81460.0,0.245519]
[1731316690247,0.12594221,81468.0,81464.0,0.122752]
[1731316690677,0.12594221,81468.0,81463.0,0.122755]
[1731316690875,0.12594221,81468.0,81461.0,0.245516]
[1731316691030,0.12594221,81468.0,81458.0,0.19181271]
[1731316691235,0.12594221,81468.0,81462.0,0.122755]
[1731316691441,0.12594221,81468.0,81459.0,0.245522]
[1731316691636,0.12594221,81468.0,81462.0,0.122755]
[1731316692042,0.12594221,81468.0,81465.0,0.122751]
[1731316692263,0.12594221,81468.0,81466.0,0.12275]
[1731316692464,0.12594221,81468.0,81460.0,0.247519]
[1731316692465,0.12594221,81468.0,81467.0,0.122749]
[1731316694073,0.12594221,81468.0,81467.0,0.124749]
[1731316694676,0.12594221,81468.0,81467.0,0.129749]
[1731316694901,0.12594221,81468.0,81466.0,0.17050526]
[1731316694902,0.18457563,81493.0,81483.0,0.122724]
[1731316695083,0.31051784,81484.0,81483.0,0.122724]
[1731316695484,0.12594221,81484.0,81483.0,0.122724]
[1731316695685,0.12594221,81484.0,81463.0,0.002]
[1731316695686,0.31720169,81484.0,81463.0,0.002]
[1731316695958,0.12594221,81473.0,81469.0,0.18457563]
[1731316696338,0.12594221,81473.0,81464.0,0.002]
[1731316696339,0.00283596,81472.0,81464.0,0.002]
[1731316696484,0.12594221,81471.0,81470.0,0.122744]
[1731316696697,0.12877816,81471.0,81470.0,0.122744]
[1731316697532,0.12877816,81471.0,81468.0,0.122746]
[1731316697742,0.12877816,81471.0,81467.0,0.245498]
[1731316697743,0.12594221,81471.0,81467.0,0.245498]
[1731316698193,0.12594221,81471.0,81470.0,0.122744]
[1731316699491,0.12877816,81471.0,81470.0,0.122744]
[1731316700014,0.12877816,81471.0,81470.0,0.124744]
[1731316700141,0.12877816,81471.0,81470.0,0.122744]
[1731316700881,0.12877816,81471.0,81470.0,0.124744]
[1731316701870,0.12877816,81471.0,81470.0,0.129744]
[1731316701997,0.00283595,81471.0,81470.0,0.129744]
[1731316702201,0.18457563,81482.0,81481.0,0.124727]
[1731316702443,0.31051784,81482.0,81481.0,0.124727]
[1731316702629,0.12875693,81482.0,81481.0,0.122727]
[1731316704709,0.12875693,81482.0,81481.0,0.124727]
[1731316705116,0.12875693,81482.0,81481.0,0.122727]
[1731316705537,0.12875693,81482.0,81481.0,0.124727]
[1731316706153,0.12875693,81482.0,81481.0,0.122727]
[1731316707036,0.12875693,81482.0,81481.0,0.124727]
[1731316707628,0.00281472,81482.0,81481.0,0.30023226]
[1731316707822,0.000842,81489.0,81481.0,0.17750526]
[1731316708046,0.12594221,81488.0,81487.0,0.124718]
[1731316708823,0.12594221,81488.0,81487.0,0.129718]
[1731316710243,0.12594221,81488.0,81487.0,0.122718]
[1731316715977,0.12594221,81488.0,81475.0,0.005]
[1731316715978,0.20664221,81488.0,81475.0,0.005]
[1731316716150,0.20664221,81488.0,81483.0,0.122724]
[1731316716293,0.20664221,81488.0,81470.0,0.001684]
[1731316716294,0.12594221,81486.0,81478.0,0.0074084]
[1731316716516,0.12594221,81486.0,81470.0,0.003684]
[1731316716517,0.122726,81482.0,81475.0,0.122736]
[1731316716722,0.12594221,81480.0,81470.0,0.00913542]
[1731316716943,0.00295491,81479.0,81470.0,0.001684]
[1731316717154,0.00295491,81479.0,81477.0,0.122734]
[1731316717155,0.12594221,81478.0,81477.0,0.122734]
[1731316717352,0.12594221,81478.0,81470.0,0.001684]
[1731316717353,0.145743,81471.0,81470.0,0.001684]
[1731316717558,0.14894221,81471.0,81470.0,0.001684]
[1731316717831,0.15188226,81471.0,81470.0,0.001684]
[1731316718106,0.27462526,81471.0,81470.0,0.001684]
[1731316718249,0.52253052,81471.0,81470.0,0.001684]
[1731316718457,0.55914234,81471.0,81470.0,0.001684]
[1731316718666,0.43443708,81471.0,81470.0,0.001684]
[1731316719096,0.22928226,81471.0,81470.0,0.001684]
[1731316719294,0.22928226,81471.0,81470.0,0.124428]
[1731316719464,0.20628226,81471.0,81470.0,0.124428]
[1731316719667,0.12888226,81471.0,81470.0,0.124428]
[1731316721292,0.12888226,81471.0,81470.0,0.129428]
[1731316721584,0.12888226,81471.0,81470.0,0.131428]
[1731316722765,0.00294005,81471.0,81470.0,0.131428]
[1731316723211,0.18457563,81486.0,81485.0,0.122721]
[1731316723408,0.31051784,81486.0,81485.0,0.122721]
[1731316723610,0.12882369,81486.0,81485.0,0.122721]
[1731316724213,0.12882369,81486.0,81485.0,0.1335277]
[1731316725601,0.15182369,81486.0,81485.0,0.0108067]
[1731316726513,0.023,81485.0,81481.0,0.122727]
[1731316726823,0.12594221,81482.0,81481.0,0.122727]
[1731316727244,0.12887967,81482.0,81481.0,0.122727]
[1731316727460,0.12594221,81482.0,81481.0,0.122727]
[1731316727691,0.12887967,81482.0,81481.0,0.122727]
[1731316728839,0.12887967,81482.0,81470.0,0.001684]
[1731316728840,0.023,81481.0,81470.0,0.001684]
[1731316729039,0.20104221,81480.0,81473.0,0.122739]
[1731316729276,0.20397831,81480.0,81474.0,0.122737]
[1731316729764,0.20397831,81480.0,81472.0,0.245483]
[1731316730011,0.023,81472.0,81470.0,0.001684]
[1731316730216,0.14894221,81471.0,81470.0,0.001684]
[1731316730434,0.27462121,81471.0,81470.0,0.001684]
[1731316730655,0.15187821,81471.0,81470.0,0.001684]
[1731316730879,0.27462121,81471.0,81470.0,0.001684]
[1731316731097,0.15187821,81471.0,81470.0,0.001684]
[1731316731744,0.27462121,81471.0,81470.0,0.001684]
[1731316731968,0.39952121,81471.0,81470.0,0.001684]
[1731316736070,0.23137821,81471.0,81470.0,0.001684]
[1731316736491,0.35412121,81471.0,81470.0,0.001684]
[1731316738918,0.40502121,81471.0,81470.0,0.001684]
[1731316739379,0.45296949,81471.0,81470.0,0.001684]
[1731316740136,0.40502121,81471.0,81470.0,0.001684]
[1731316740413,0.50502121,81471.0,81470.0,0.001684]
[1731316740612,0.64026162,81471.0,81470.0,0.001684]
[1731316740878,0.225661,81459.0,81458.0,0.001684]
[1731316741084,0.39970321,81459.0,81458.0,0.001684]
[1731316741307,0.50753351,81459.0,81458.0,0.001684]
[1731316741561,0.50753351,81459.0,81437.0,0.18457563]
[1731316741562,0.225692,81438.0,81437.0,0.18457563]
[1731316741825,0.35163421,81438.0,81437.0,0.18457563]
[1731316742066,0.35163421,81438.0,81420.0,0.18457563]
[1731316742067,0.023,81421.0,81420.0,0.18457563]
[1731316742273,0.14894221,81421.0,81420.0,0.18457563]
[1731316742491,0.14894221,81421.0,81416.0,0.124825]
[1731316742708,0.0257818,81421.0,81420.0,0.122819]
[1731316742926,0.12594221,81421.0,81417.0,0.122823]
[1731316743142,0.12594221,81420.0,81417.0,0.122823]
[1731316743388,0.128724,81420.0,81417.0,0.122823]
[1731316743598,0.128724,81420.0,81411.0,0.123675]
[1731316743599,0.122821,81419.0,81411.0,0.123675]
[1731316743804,0.12594221,81418.0,81411.0,0.000843]
[1731316743956,0.12594221,81416.0,81411.0,0.000843]
[1731316744158,0.00278173,81415.0,81411.0,0.000843]
[1731316744364,0.12594221,81414.0,81411.0,0.000843]
[1731316744573,0.0027817,81413.0,81411.0,0.000843]
[1731316744915,0.12594221,81412.0,81411.0,0.000843]
[1731316745325,0.12869667,81412.0,81411.0,0.123676]
[1731316745642,0.12594221,81412.0,81411.0,0.125676]
[1731316745849,0.12869157,81412.0,81411.0,0.125676]
[1731316746410,0.12594221,81412.0,81411.0,0.125676]
[1731316747723,0.12870028,81412.0,81411.0,0.125676]
[1731316748348,0.12870028,81412.0,81411.0,0.123676]
[1731316750731,0.12594221,81412.0,81411.0,0.123676]
[1731316750899,0.12594221,81412.0,81411.0,0.125676]
[1731316751253,0.12594221,81412.0,81411.0,0.123676]
[1731316753063,0.22163643,81412.0,81411.0,0.000843]
[1731316753251,0.36746843,81412.0,81411.0,0.000843]
[1731316753679,0.35487421,81412.0,81411.0,0.000843]
[1731316753884,0.23204221,81412.0,81411.0,0.000843]
[1731316754224,0.12594221,81412.0,81411.0,0.125676]
[1731316755168,0.12594221,81412.0,81411.0,0.000843]
[1731316755664,0.14894221,81412.0,81411.0,0.000843]
[1731316757261,0.14894221,81412.0,81411.0,0.123676]
[1731316757655,0.14894221,81412.0,81411.0,0.000843]
[1731316757914,0.14894221,81412.0,81411.0,0.123676]
[1731316758698,0.14894221,81412.0,81411.0,0.000843]
[1731316760248,0.14894221,81412.0,81411.0,0.125676]
[1731316760453,0.14894221,81412.0,81411.0,0.123676]
[1731316760604,0.14894221,81412.0,81411.0,0.000843]
[1731316760925,0.14894221,81412.0,81411.0,0.123676]
[1731316761555,0.14894221,81412.0,81411.0,0.000843]
[1731316762427,0.14894221,81412.0,81411.0,0.123676]
[1731316763063,0.12594221,81412.0,81411.0,0.123676]
[1731316763700,0.12594221,81412.0,81411.0,0.125676]
[1731316765471,0.12594221,81412.0,81411.0,0.123676]
[1731316767173,0.12594221,81412.0,81411.0,0.125676]
[1731316767400,0.12594221,81412.0,81411.0,0.123676]
[1731316770629,0.12594221,81412.0,81411.0,0.000843]
[1731316770867,0.12594221,81412.0,81411.0,0.123676]
[1731316771926,0.20794221,81412.0,81411.0,0.123676]
[1731316772836,0.20794221,81412.0,81411.0,0.000843]
[1731316773256,0.20794221,81412.0,81411.0,0.123676]
[1731316774530,0.20794221,81412.0,81411.0,0.000843]
[1731316774951,0.20794221,81412.0,81411.0,0.123676]
[1731316779006,0.21070769,81412.0,81411.0,0.123676]
[1731316779656,0.21070769,81412.0,81411.0,0.000843]
[1731316779860,0.21070769,81412.0,81411.0,0.123676]
[1731316781005,0.23177846,81412.0,81411.0,0.000843]
[1731316781384,0.23370769,81412.0,81411.0,0.000843]
[1731316785615,0.2704273,81412.0,81411.0,0.000843]
[1731316785813,0.56506993,81412.0,81411.0,0.000843]
[1731316785965,0.49209532,81412.0,81411.0,0.000843]
[1731316786180,1.99209532,81412.0,81411.0,0.000843]
[1731316786378,2.20984676,81412.0,81411.0,0.000843]
[1731316786578,1.99209532,81412.0,81411.0,0.000843]
[1731316786964,0.49209532,81412.0,81411.0,0.000843]
[1731316787164,0.36926332,81412.0,81411.0,0.000843]
[1731316787921,0.46116745,81412.0,81411.0,0.123676]
[1731316788113,0.36926332,81412.0,81411.0,0.123676]
[1731316788589,0.12870769,81412.0,81411.0,0.123676]
[1731316788786,0.12870769,81412.0,81411.0,0.125676]
[1731316789071,0.12594221,81412.0,81411.0,0.125676]
[1731316790456,0.12594221,81412.0,81411.0,0.123676]
[1731316791439,0.12594221,81412.0,81411.0,0.13121204]
[1731316793095,0.12594221,81412.0,81411.0,0.13321204]
[1731316794788,0.12594221,81412.0,81411.0,0.3037173]
[1731316796131,0.12594221,81412.0,81411.0,0.13321204]
[1731316796343,0.12594221,81412.0,81411.0,0.13121204]
[1731316799267,0.22494221,81412.0,81411.0,0.000843]
[1731316799808,0.22768092,81412.0,81411.0,0.000843]
[1731316800922,0.26443917,81412.0,81411.0,0.000843]
[1731316801128,0.22768092,81412.0,81411.0,0.000843]
[1731316804068,0.22768092,81412.0,81411.0,0.123676]
[1731316804283,0.22768092,81412.0,81411.0,0.000843]
[1731316808009,0.22768092,81412.0,81411.0,0.123676]
[1731316808439,0.15168092,81412.0,81411.0,0.123676]
[1731316808662,0.14894221,81412.0,81411.0,0.123676]
[1731316808908,0.1516537,81412.0,81411.0,0.123676]
[1731316812569,0.1516537,81412.0,81411.0,0.000843]
[1731316813523,0.1516537,81412.0,81411.0,0.123676]
[1731316815407,0.1516537,81412.0,81411.0,0.000843]
[1731316815408,0.20679771,81412.0,81411.0,0.000843]
[1731316815570,0.1516537,81412.0,81411.0,0.000843]
[1731316816101,0.188421,81412.0,81411.0,0.000843]
[1731316816806,0.3585857,81412.0,81411.0,0.000843]
[1731316817015,0.73767036,81412.0,81411.0,0.000843]
[1731316817230,0.55309473,81412.0,81411.0,0.000843]
[1731316818094,0.51737303,81412.0,81411.0,0.000843]
[1731316818284,0.65307862,81412.0,81411.0,0.000843]
[1731316818455,0.71625229,81412.0,81411.0,0.000843]
[1731316818659,0.72376899,81412.0,81411.0,0.000843]
[1731316819224,2.22376899,81412.0,81411.0,0.000843]
[1731316820980,2.39427425,81412.0,81411.0,0.000843]
[1731316821176,2.39426465,81412.0,81411.0,0.000843]
[1731316822637,2.38278692,81412.0,81411.0,0.000843]
[1731316822845,2.31948035,81412.0,81411.0,0.000843]
[1731316823694,2.14897509,81412.0,81411.0,0.000843]
[1731316823818,2.22242185,81412.0,81411.0,0.000843]
[1731316824022,2.14897509,81412.0,81411.0,0.000843]
[1731316824238,2.22241819,81412.0,81411.0,0.000843]
[1731316824728,2.3483604,81412.0,81411.0,0.000843]
[1731316825146,2.22241819,81412.0,81411.0,0.000843]
[1731316825968,2.23389269,81412.0,81411.0,0.000843]
[1731316826585,2.40439795,81412.0,81411.0,0.000843]
[1731316826886,2.50146011,81412.0,81411.0,0.000843]
[1731316827089,2.50146011,81412.0,81405.0,0.25]
[1731316827090,0.55414626,81406.0,81405.0,0.25]
[1731316827294,0.82713566,81406.0,81405.0,0.25]
[1731316827406,0.91892035,81406.0,81405.0,0.25]
[1731316827635,0.9188651,81406.0,81405.0,0.25]
[1731316827842,0.94181715,81406.0,81405.0,0.25]
[1731316828051,1.06775936,81406.0,81405.0,0.25]
[1731316828502,1.05628486,81406.0,81405.0,0.25]
[1731316828676,1.06775937,81406.0,81405.0,0.25]
[1731316829321,0.97597807,81406.0,81405.0,0.25]
[1731316829496,0.99433482,81406.0,81405.0,0.25]
[1731316829703,1.67663482,81406.0,81405.0,0.25]
[1731316830505,3.14680356,81406.0,81405.0,0.25]
[1731316830730,3.17662643,81406.0,81405.0,0.25]
[1731316831921,3.17662643,81406.0,81405.0,0.250842]
[1731316832361,3.17660908,81406.0,81405.0,0.250842]
[1731316833992,3.15367438,81406.0,81405.0,0.250842]
[1731316834350,3.22698434,81406.0,81405.0,0.250842]
[1731316834964,0.96270531,81406.0,81405.0,0.250842]
[1731316835178,0.80824221,81406.0,81405.0,0.250842]
[1731316835505,0.12594221,81406.0,81405.0,0.250842]
[1731316835981,0.12594221,81406.0,81405.0,0.373684]
[1731316836204,0.12594221,81406.0,81405.0,0.375684]
[1731316836654,0.12594221,81406.0,81405.0,0.373684]
[1731316839386,0.12594221,81406.0,81405.0,0.380684]
[1731316840360,0.12594221,81406.0,81405.0,0.38801634]
[1731316844052,0.12594221,81406.0,81405.0,0.38601634]
[1731316846779,0.12594221,81406.0,81405.0,0.38801634]
[1731316846997,0.12594221,81406.0,81405.0,0.38601634]
[1731316848266,0.12594221,81406.0,81405.0,0.38801634]
[1731316851535,0.12594221,81406.0,81405.0,0.38601634]
[1731316851733,0.12594221,81406.0,81405.0,0.38801634]
[1731316860427,0.12594221,81406.0,81405.0,0.38601634]
[1731316861076,0.12594221,81406.0,81405.0,0.38801634]
[1731316862027,0.001686,81411.0,81410.0,0.253535]
[1731316862254,0.001686,81411.0,81410.0,0.41887943]
[1731316862482,0.001686,81411.0,81410.0,0.41642333]
[1731316862712,0.00184282,81421.0,81410.0,0.41642333]
[1731316862713,0.00184282,81421.0,81420.0,0.253519]
[1731316862973,0.00413976,81421.0,81420.0,0.25597504]
[1731316863205,0.00184282,81421.0,81420.0,0.42402426]
[1731316863643,0.18457563,81435.0,81420.0,0.30120526]
[1731316863858,0.12594221,81425.0,81424.0,0.179113]
[1731316864077,0.18457563,81435.0,81434.0,0.124798]
[1731316864356,0.31256889,81435.0,81434.0,0.124798]
[1731316864586,0.31256889,81435.0,81434.0,0.122798]
[1731316864798,0.12799326,81435.0,81434.0,0.122798]
[1731316865255,0.12799326,81435.0,81434.0,0.13004098]
[1731316867015,0.12799326,81435.0,81431.0,0.122803]
[1731316867236,0.35508089,81445.0,81428.0,0.245615]
[1731316867237,0.12594221,81433.0,81428.0,0.122807]
[1731316867451,0.12594221,81433.0,81425.0,0.002]
[1731316867452,0.00206428,81432.0,81429.0,0.122805]
[1731316867658,0.12594221,81431.0,81430.0,0.124804]
[1731316868159,0.12800648,81431.0,81430.0,0.14434426]
[1731316868417,0.12800648,81431.0,81430.0,0.19054426]
[1731316868633,0.12594221,81431.0,81430.0,0.127804]
[1731316869136,0.12800639,81431.0,81430.0,0.127804]
[1731316869398,0.12800639,81431.0,81430.0,0.122804]
[1731316870504,0.12800639,81431.0,81428.0,0.25300275]
[1731316870505,0.12800639,81431.0,81428.0,0.00738775]
[1731316870753,0.12800639,81431.0,81430.0,0.122804]
[1731316871628,0.12800639,81431.0,81430.0,0.42960354]
[1731316871850,0.001686,81435.0,81430.0,0.30679954]
[1731316872076,0.12594221,81434.0,81433.0,0.1228]
[1731316872271,0.12594221,81434.0,81433.0,0.1248]
[1731316872738,0.12594221,81434.0,81433.0,0.1298]
[1731316873792,0.12594221,81434.0,81432.0,0.245601]
[1731316873793,0.001686,81435.0,81434.0,0.129798]
[1731316875381,0.001686,81435.0,81434.0,0.1322535]
[1731316875582,0.001686,81435.0,81434.0,0.178298]
[1731316876465,0.001686,81435.0,81434.0,0.18565245]